Cogmind - Beta 11 @@@ ROGUE MODE // 2022.04.03 @ 16:24:15 Player: T-900 Result: Destroyed by H-55 Commando with Assault Rifle Performance ------------- Evolutions (3) 1500 Regions Visited (7) 1400 Robots Destroyed (24) 120 Value Destroyed (873) 873 Prototype IDs (1) 20 Alien Tech Used (0) 0 Bonus (0) 0 TOTAL SCORE: 3913 Bonus ------- None Cogmind --------- Core Integrity 0/700 Matter 257/300 Energy 88/100 System Corruption 2% Temperature Cool (0) Movement Core (50) Location -7/Factory Parts ------- > --- POWER (1) -------- (None) > --- PROPULSION (5) --- (None) > --- UTILITY (4) ------ Improved Cooling System > --- WEAPON (3) ------- (None) > --- INVENTORY (5) ---- Kinecellerator Peak State ------------ > --- POWER ------------ Ion Engine > --- PROPULSION ------- Medium Treads Medium Treads Aluminum Leg > --- UTILITY ---------- Improved Heat Sink Medium Storage Unit Shield Generator Improved Shield Generator > --- WEAPON ----------- Arc Projector Particle Gun Assault Cannon > --- INVENTORY -------- Improved Carbon-fiber Leg Improved Carbon-fiber Leg Improved Carbon-fiber Leg Improved Carbon-fiber Leg Mining Laser Mining Laser [Rating: 30] Favorites ----------- Power Ion Engine Engine Ion Engine Power Core Light Nuclear Core Propulsion Improved Treads Treads Improved Treads Leg Aluminum Leg Wheel Wheel Hover Unit Cooled Gravmag System Utility Visual Processing Unit Device Shield Generator Storage Medium Storage Unit Processor Visual Processing Unit Weapon Light Assault Rifle Energy Gun Arc Projector Ballistic Gun Light Assault Rifle Ballistic Cannon Assault Cannon Launcher Mini Grenade Launcher Special Weapon Mining Laser Build | -11 -10 -9 -9 -8 -7 -7 -7 ------- Run | Scr Mat Mat Min Mat Fac Was Fac Slots Evolved 6 | . . 2 . 2 2 . . Power . | . . . . . . . . Propulsion 3 | . . 1 . 1 1 . . Utility 2 | . . . . 1 1 . . Weapon 1 | . . 1 . . . . . Parts Attached 52 | 5 10 6 1 7 20 1 2 Power 7 | 1 3 1 . 1 1 . . Engine 5 | 1 3 . . . 1 . . Core 2 | . . 1 . 1 . . . Reactor . | . . . . . . . . Propulsion 17 | 2 2 2 . 3 7 1 . Treads 6 | . 2 2 . . 2 . . Leg 8 | . . . . 3 5 . . Wheel 2 | 2 . . . . . . . Hover 1 | . . . . . . 1 . Flight . | . . . . . . . . Utility 9 | . 3 . . 1 3 . 2 Device 5 | . . . . . 3 . 2 Storage 1 | . 1 . . . . . . Processor 3 | . 2 . . 1 . . . Hackware . | . . . . . . . . Protection . | . . . . . . . . Artifact . | . . . . . . . . Weapon 19 | 2 2 3 1 2 9 . . Energy Gun 8 | 1 . 2 . 2 3 . . Energy Cannon . | . . . . . . . . Ballistic Gun 6 | 1 2 1 . . 2 . . Ballistic Cannon 2 | . . . . . 2 . . Launcher 1 | . . . 1 . . . . Special Weapon 2 | . . . . . 2 . . Impact Weapon . | . . . . . . . . Slashing Weapon . | . . . . . . . . Piercing Weapon . | . . . . . . . . Special Melee Weapon . | . . . . . . . . Unidentified Prototypes 1 | . . . . . . 1 . Parts Lost 34 | . 3 2 . 10 19 . . Power 4 | . 1 . . 2 1 . . Propulsion 16 | . 2 1 . 3 10 . . Utility 3 | . . . . . 3 . . Weapon 11 | . . 1 . 5 5 . . Highest Loss Streak 8 | . 2 1 . 8 7 . . To Critical Strikes . | . . . . . . . . Average Slot Usage (%) 81 | . 96 98 100 75 74 . 2 Engine 5 | . 13 2 . . 6 . . Core 3 | . . 8 11 7 . . . Treads 17 | . 21 31 33 17 7 . . Leg 5 | . . . . 5 13 . . Wheel 1 | . 5 . . . . . . Device 2 | . . . . . 6 . 2 Storage 6 | . 1 11 11 9 7 . . Processor 14 | . 24 11 11 18 11 . . Energy Gun 8 | . 1 13 20 7 9 . . Ballistic Gun 13 | . 26 19 11 7 7 . . Naked Turns 137 | . . . . . . 50 87 Heaviest Build 34 | 6 18 20 20 23 34 . 2 Greatest Support 66 | 20 43 66 43 43 56 3 3 Greatest Overweight (x) 3 | . . . . . 3 . . Average Overweight (x) . | . . . . . . . . Largest Inventory Capacity 10 | 5 10 10 10 10 10 5 5 Average Capacity 8 | 5 5 10 10 10 10 5 5 Most Carried 10 | 5 9 10 9 10 7 1 2 Average Carried 5 | 2 5 9 8 8 3 . . Final Capacity 10 | 5 10 10 10 10 10 5 5 Final Carried 9 | 3 9 9 9 5 . . 1 Class Distribution -------------------- 42% | Mutant 22% | Scavenger-Skirmisher 21% | Scavenger-Mutant 10% | Tank Dominant Class ---------------- Mutant | -10/Materials Scavenger-Skirmisher | -9/Materials Scavenger-Skirmisher | -9/Mines Scavenger-Mutant | -8/Materials Scavenger-Mutant | -7/Factory Mutant | -7/Waste Mutant | -7/Factory Resources | -11 -10 -9 -9 -8 -7 -7 -7 ----------- Run | Scr Mat Mat Min Mat Fac Was Fac Matter Collected 873 | 255 159 165 20 47 227 . . Remotely . | . . . . . . . . Salvage Created 958 | 34 338 225 . 54 307 . . Parts 45 | 1 18 11 . 1 14 . . Haulers Intercepted 1 | . 1 . . . . . . Recyclers Shooed . | . . . . . . . . Parts Field Recycled . | . . . . . . . . Retrieved Matter . | . . . . . . . . Parts Self-Destructed . | . . . . . . . . Prevented . | . . . . . . . . Kills | -11 -10 -9 -9 -8 -7 -7 -7 ------- Run | Scr Mat Mat Min Mat Fac Was Fac Combat Hostiles Destroyed 23 | 1 10 5 . 1 6 . . Guns 23 | 1 10 5 . 1 6 . . Classes Destroyed 6 | 1 2 1 . . 2 . . Hauler 1 | . 1 . . . . . . Swarmer 6 | . 6 . . . . . . Grunt 12 | 1 4 3 . 1 3 . . Sentry 2 | . . 2 . . . . . Hunter 1 | . . . . . 1 . . Programmer 2 | . . . . . 2 . . Best Kill Streak 4 | 1 4 4 . 1 3 . . Combat Bots Only 4 | 1 4 4 . 1 3 . . Max Kills in Single Turn 1 | 1 1 1 . 1 1 . . Gunslinging . | . . . . . . . . Exploded . | . . . . . . . . Melee . | . . . . . . . . Uniques/NPCs Destroyed . | . . . . . . . . Combat | -11 -10 -9 -9 -8 -7 -7 -7 -------- Run | Scr Mat Mat Min Mat Fac Was Fac Damage Taken 4514 | 56 462 370 . 1317 2255 . 54 Core 1158 | . 126 56 . 272 670 . 34 Absorbed by Shields 222 | . . . . . 222 . . Core Remaining (%) 71 | 100 49 . 86 50 . . . Volleys Fired 97 | 5 38 15 . 3 36 . . Largest 3 | 2 2 3 . 3 3 . . Hottest 180 | 60 40 116 . 180 164 . . Shots Fired 212 | 10 76 45 . 8 73 . . Gun 207 | 10 76 45 . 8 68 . . Cannon 4 | . . . . . 4 . . Launcher . | . . . . . . . . Special 1 | . . . . . 1 . . Kinetic 150 | 5 76 34 . 2 33 . . Thermal 37 | . . 11 . 6 20 . . Explosive . | . . . . . . . . Electromagnetic 25 | 5 . . . . 20 . . Robot Hit Streak 21 | 4 12 21 . 12 8 . . Robot Miss Streak 5 | 2 5 3 . 3 5 . . Penetration Max . | . . . . . . . . Secondary Targets 5 | . 2 2 . . 1 . . Max Gunslinging Chain 1 | . 1 1 . . 1 . . Shots Hit Robots 133 | 7 45 29 . 8 44 . . Core Hits 63 | 3 16 13 . 5 26 . . Critical Kills . | . . . . . . . . Critical Parts Destroyed 1 | . . 1 . . . . . Critical Strikes 5 | . . 2 . . 3 . . Burn 4 | . . 1 . . 3 . . Destroy 1 | . . 1 . . . . . Melee Attacks . | . . . . . . . . Impact . | . . . . . . . . Slashing . | . . . . . . . . Piercing . | . . . . . . . . Sneak Attacks . | . . . . . . . . Combat Hostiles . | . . . . . . . . Follow-up Attacks . | . . . . . . . . Damage Inflicted 1822 | 168 521 276 . 112 739 . 6 Guns 1558 | 71 519 276 . 112 580 . . Cannons 62 | . . . . . 62 . . Explosions 97 | 97 . . . . . . . Melee . | . . . . . . . . Ramming 105 | . 2 . . . 97 . 6 Kinetic 1103 | 28 519 232 . 14 310 . . Thermal 449 | 97 . 44 . 98 210 . . Explosive . | . . . . . . . . Electromagnetic 165 | 43 . . . . 122 . . Impact . | . . . . . . . . Slashing . | . . . . . . . . Piercing . | . . . . . . . . Highest Corruption 2 | . . . . . 2 2 2 Average Corruption 1 | . . . . . 1 2 2 Corruption Purged . | . . . . . . . . Corruption Blocked . | . . . . . . . . Effects 13 | . . . . . 10 2 1 Message Errors 2 | . . . . . 2 . . Matter Fused 4 | . . . . . 2 1 1 Heat Flow Errors 1 | . . . . . 1 . . Energy Discharges 1 | . . . . . 1 . . Parts Rejected 2 | . . . . . 2 . . Data Loss (minor) 1 | . . . . . 1 . . Data Loss (major) 2 | . . . . . 1 1 . Overload Shots . | . . . . . . . . Overflow Damage 15 | . . 15 . . . . . Projectiles . | . . . . . . . . Explosions 15 | . . 15 . . . . . Melee . | . . . . . . . . Knockbacks 1 | . . . . . 1 . . Impact . | . . . . . . . . Kinetic 1 | . . . . . 1 . . Secondary . | . . . . . . . . Self-Inflicted Damage 79 | . 1 75 . . . . 3 Shots 1 | . . 1 . . . . . Rammed 3 | . 1 . . . . . 2 Targets Rammed 38 | . 1 . . . 35 . 2 Kicked 35 | . . . . . 35 . . Crushed . | . . . . . . . . Highest Temperature 271 | 70 18 174 . 271 243 . . Average Temperature 68 | 46 9 69 . 144 48 . . Received Heat Transfer 1906 | 30 108 135 . 765 859 . 9 Siege Activations . | . . . . . . . . Robots Corrupted . | . . . . . . . . Combat Hostiles . | . . . . . . . . Parts Fried . | . . . . . . . . Impact Corruptions . | . . . . . . . . Robots Melted . | . . . . . . . . Combat Hostiles . | . . . . . . . . Parts Melted 2 | . . 1 . . 1 . . Heat Transferred 1263 | 150 . 185 . 225 703 . . Parts Sabotaged . | . . . . . . . . Parts Stolen . | . . . . . . . . Parts Stripped . | . . . . . . . . Power Chain Reactions 1 | 1 . . . . . . . Missiles Intercepted . | . . . . . . . . Alert | -11 -10 -9 -9 -8 -7 -7 -7 ------- Run | Scr Mat Mat Min Mat Fac Was Fac Peak Influence 411 | 20 310 411 82 54 135 20 44 Initial 82 | . 13 49 82 31 . 5 14 Average 88 | 2 141 213 82 30 40 15 16 Maximum Alert Level 2 | . 1 2 . . . . . Low Security (%) 88 | 100 70 63 100 100 100 100 100 Level 1 7 | . 29 9 . . . . . Level 2 3 | . . 26 . . . . . Level 3 . | . . . . . . . . Level 4 . | . . . . . . . . Level 5 . | . . . . . . . . High Security . | . . . . . . . . Max Security . | . . . . . . . . Squads Dispatched 13 | . 2 . . 2 8 . 1 Investigation 4 | . 1 . . . 2 . 1 Extermination 3 | . . . . . 3 . . Reinforcement 6 | . 1 . . 2 3 . . Assault . | . . . . . . . . Garrison . | . . . . . . . . Intercept . | . . . . . . . . Searches Triggered . | . . . . . . . . Construction Impeded . | . . . . . . . . Haulers Reinforced . | . . . . . . . . Active Scanning Responses . | . . . . . . . . Cargo Convoy Interrupts . | . . . . . . . . Stealth | -11 -10 -9 -9 -8 -7 -7 -7 --------- Run | Scr Mat Mat Min Mat Fac Was Fac Distress Signals 6 | . 1 . 2 . 2 . 1 Communications Jammed . | . . . . . . . . Distress Signals . | . . . . . . . . Times Spotted 67 | 1 16 5 . 13 18 5 9 Peak Tracking Total 9 | 1 5 4 . 9 7 5 8 Tactical Retreats 5 | . 1 . . . 3 . 1 Traps | -11 -10 -9 -9 -8 -7 -7 -7 ------- Run | Scr Mat Mat Min Mat Fac Was Fac Traps Triggered 2 | . 1 . . . 1 . . Indirectly . | . . . . . . . . Trap Hack Attempts . | . . . . . . . . Triggered . | . . . . . . . . Disarmed . | . . . . . . . . Reprogrammed . | . . . . . . . . Reused . | . . . . . . . . Traps Extracted . | . . . . . . . . Installed . | . . . . . . . . Triggered . | . . . . . . . . Machines | -11 -10 -9 -9 -8 -7 -7 -7 ---------- Run | Scr Mat Mat Min Mat Fac Was Fac Machines Disabled 6 | . . 6 . . . . . Max in Single Turn 6 | . . 6 . . . . . Machines Sabotaged . | . . . . . . . . Garrisons Compromised . | . . . . . . . . Overloaded Fab Kills . | . . . . . . . . Hacking | -11 -10 -9 -9 -8 -7 -7 -7 --------- Run | Scr Mat Mat Min Mat Fac Was Fac Machines Accessed 7 | . 4 . . 1 1 . 1 Terminals 6 | . 4 . . . 1 . 1 Fabricators . | . . . . . . . . Repair Stations . | . . . . . . . . Recycling Units . | . . . . . . . . Scanalyzers . | . . . . . . . . Garrison Access 1 | . . . . 1 . . . Total Hacks 14 | . 8 . . 1 3 . 2 Successful 3 | . 2 . . 1 . . . Failed 11 | . 6 . . . 3 . 2 Catastrophic . | . . . . . . . . Database Lockouts . | . . . . . . . . Manual 11 | . 8 . . 1 . . 2 Terminals 13 | . 8 . . . 3 . 2 Fabricators . | . . . . . . . . Repair Stations . | . . . . . . . . Recycling Units . | . . . . . . . . Scanalyzers . | . . . . . . . . Garrison Access 1 | . . . . 1 . . . Terminal Hacks . | . . . . . . . . Fabricator Hacks . | . . . . . . . . Repair Station Hacks . | . . . . . . . . Recycling Unit Hacks . | . . . . . . . . Scanalyzer . | . . . . . . . . Garrison Access Hacks . | . . . . . . . . Unauthorized Hacks 3 | . 2 . . 1 . . . Terminals 2 | . 2 . . . . . . Assimilate 2 | . 2 . . . . . . Fabricators . | . . . . . . . . Repair Stations . | . . . . . . . . Recycling Units . | . . . . . . . . Scanalyzers . | . . . . . . . . Garrison Access 1 | . . . . 1 . . . Reprogram 1 | . . . . 1 . . . Data Cores Recovered . | . . . . . . . . Used . | . . . . . . . . Hacking Detections 4 | . 2 . . . 1 . 1 Full Trace Events 2 | . . . . . 1 . 1 Feedback Events . | . . . . . . . . Feedback Blocked . | . . . . . . . . Robot Schematics Acquired . | . . . . . . . . Robots Built . | . . . . . . . . Authchips . | . . . . . . . . Time . | . . . . . . . . Total Robot Build Rating . | . . . . . . . . Part Schematics Acquired . | . . . . . . . . Parts Built . | . . . . . . . . Authchips . | . . . . . . . . Time . | . . . . . . . . Total Part Build Rating . | . . . . . . . . Parts Repaired . | . . . . . . . . Time . | . . . . . . . . Parts Recycled . | . . . . . . . . Recycled Matter . | . . . . . . . . Retrieved Matter . | . . . . . . . . Retrieved Components . | . . . . . . . . Parts Scanalyzed . | . . . . . . . . Part Schematics Acquired . | . . . . . . . . Parts Damaged . | . . . . . . . . Bothacking | -11 -10 -9 -9 -8 -7 -7 -7 ------------ Run | Scr Mat Mat Min Mat Fac Was Fac Used RIF Installer . | . . . . . . . . Robots Hacked . | . . . . . . . . Non-combat . | . . . . . . . . Combat . | . . . . . . . . Robot Hacks Applied . | . . . . . . . . Relay Couplers Released . | . . . . . . . . Fabnet Peak Effective % . | . . . . . . . . Robots Rewired . | . . . . . . . . Allies Hacked . | . . . . . . . . Hacks Repelled . | . . . . . . . . Allies | -11 -10 -9 -9 -8 -7 -7 -7 -------- Run | Scr Mat Mat Min Mat Fac Was Fac Total Allies . | . . . . . . . . Largest Group . | . . . . . . . . Highest-Rated Group . | . . . . . . . . Highest-Rated Ally . | . . . . . . . . Total Orders . | . . . . . . . . Ally Attacks . | . . . . . . . . Total Damage . | . . . . . . . . Kills . | . . . . . . . . Allies Corrupted . | . . . . . . . . Allies Melted . | . . . . . . . . Intel | -11 -10 -9 -9 -8 -7 -7 -7 ------- Run | Scr Mat Mat Min Mat Fac Was Fac Robot Analysis Total . | . . . . . . . . Derelict Logs Recovered . | . . . . . . . . Drone Launches . | . . . . . . . . Drone Recoveries . | . . . . . . . . Exploration | -11 -10 -9 -9 -8 -7 -7 -7 ------------- Run | Scr Mat Mat Min Mat Fac Was Fac Turns Passed 3075 | 85 649 443 363 200 1150 51 134 Spaces Moved 1801 | 79 298 225 225 120 503 96 255 Core 378 | 17 . . . . 10 96 255 Treads 853 | . 182 225 225 90 131 . . Legs 392 | . . . . 30 362 . . Wheels 178 | 62 116 . . . . . . Hover . | . . . . . . . . Flight . | . . . . . . . . Fastest Speed 50 | 50 80 160 160 120 120 50 50 Average Speed 130 | 73 128 160 160 150 166 50 50 Slowest Speed 260 | 80 160 160 160 160 260 50 50 Overloaded Moves . | . . . . . . . . Propulsion Burnouts . | . . . . . . . . Robots Hopped . | . . . . . . . . Cave-ins Triggered . | . . . . . . . . Exploration Rate (%) 29 | 6 49 17 50 16 13 78 10 Regions Visited 7 Branch Regions 1 Pre-discovered Areas . | . . . . . . . . Known Exits Taken . | . . . . . . . . Unknown Exits Taken 5 | 1 1 1 1 1 . . . Scrap Searched 2 | . . . 2 . . . . Spaces Dug . | . . . . . . . . Terrain Destroyed 54 | . . 53 . . 1 . . Melee . | . . . . . . . . Projectile 1 | . . . . . 1 . . AOE 53 | . . 53 . . . . . Terrain Rammed . | . . . . . . . . Walls Destroyed . | . . . . . . . . Machines Disabled . | . . . . . . . . Actions | -11 -10 -9 -9 -8 -7 -7 -7 --------- Run | Scr Mat Mat Min Mat Fac Was Fac Total 2332 | 96 494 279 229 132 741 99 262 Wait 289 | . 132 29 . . 128 . . Move 1795 | 78 297 224 224 119 503 95 255 Hop . | . . . . . . . . Pick Up 47 | 8 12 4 2 3 15 1 2 Fast Attach 3 | . 2 1 . . . . . Attach 43 | 5 4 4 1 7 19 1 2 Detach 1 | . . . . . . . 1 Swap 6 | . 4 1 . . 1 . . Drop 13 | . 4 1 2 . 4 2 . Fire 97 | 5 38 15 . 3 36 . . Melee . | . . . . . . . . Ram 3 | . 1 . . . . . 2 Kick 35 | . . . . . 35 . . Crush . | . . . . . . . . Escape Stasis . | . . . . . . . . Rewire . | . . . . . . . . Trap . | . . . . . . . . Miscellaneous . | . . . . . . . . Route ------- -11/Scrapyard -10/Materials -9/Materials -9/Mines -8/Materials -7/Factory -7/Waste -7/Factory History --------- Turn | Location | Event 2 | -11/Scrapyard | Met Revision 17 58 | -11/Scrapyard | Discovered new exit (range 8) 86 | -11/Scrapyard | Entered Materials 312 | -10/Materials | Build established: Mutant 417 | -10/Materials | Core integrity fell below 50% 708 | -10/Materials | Discovered new exit (range 18) 735 | -10/Materials | Entered another Materials area 735 | -9/Materials | Evolved 2 slots: Propulsion x1, Weapon x1 1134 | -9/Materials | Build established: Scavenger-Skirmisher 1135 | -9/Materials | Discovered new exit (range 12) 1178 | -9/Materials | Entered Mines 1187 | -9/Mines | Assembled infested the area 1192 | -9/Mines | Assisted by a Guerilla fighting off Assembled 1525 | -9/Mines | Discovered new exit (range 8) 1541 | -9/Mines | Entered Materials 1541 | -8/Materials | Evolved 2 slots: Propulsion x1, Utility x1 1723 | -8/Materials | Discovered new exit (range 15) 1741 | -8/Materials | Lost 8 parts (2p2n4w) 1741 | -8/Materials | Entered Factory 1741 | -7/Factory | Evolved 2 slots: Propulsion x1, Utility x1 2092 | -7/Factory | Build established: Tank 2474 | -7/Factory | Build established: Scavenger-Mutant 2765 | -7/Factory | Lost 7 parts (1p1n2u3w) 2830 | -7/Factory | Lost 3 parts (2n1u) 2843 | -7/Factory | Core integrity fell below 50% 2881 | -7/Factory | Core integrity fell below 20% 2891 | -7/Factory | Sucked down chute 2891 | -7/Factory | Entered Waste 2905 | -7/Waste | Spotted C-40 Crusher 2909 | -7/Waste | Spotted C-40 Crusher 2909 | -7/Waste | Spotted C-40 Crusher 2915 | -7/Waste | Lost 5 parts (4n1w) 2923 | -7/Waste | Spotted C-40 Crusher 2928 | -7/Waste | Spotted C-40 Crusher 2938 | -7/Waste | Discovered new exit (range 10) 2942 | -7/Waste | Entered Factory 3051 | -7/Factory | Build established: Mutant 3076 | -7/Factory | Destroyed by H-55 Commando with Assault Rifle Last Messages --------------- 02900_ System corrupted: Substantial component data lost. 02917_ System corrupted: Matter fused (-9). 02924_ Neutrino Core crushed. 02938_ EXIT=FOUND LOCATION=UNKNOWN GOAL=ESCAPE 02953_ Acquired Kinecellerator. 02967_ System corrupted: Matter fused (-9). 02988_ Connecting with Terminal... 02988_ Current location identified: Factory 02988_ ALERT: Suspicious activity at Terminal F005. Dispatching Investigation squad. 02999_ K-01 Serf cleans the Manufacturing Mainframe. 03019_ K-01 Serf collects debris. 03029_ Acquired Unknown Device. 03030_ Identified Imp. Cooling System. 03032_ ALERT: All DSF locations entering lockdown mode. 03050_ Slammed into U-05 Engineer. 03056_ K-01 Serf collects debris. 03076_ Penetrated by Slug. Map ----- +----------------------------------------------------+ | # # ??????????????????????????????????? | | # # ???????????????????????????????????? | | # # """"""?????????????????????????????????? | | # # """"""????????###??????????????????????? | | # """"""" ?????? ??????????????????????? | | + """"""" #???? ? ??#????????????????? | | """ # #???# "" #????????????????? | | """ # """"""" +??? "" #????????????????? | | """ # """"""" #???# """ #????????????????? | | "" ""# """"""" #???# """ #????????????????? | | "" ""# """"""" #???# """ #????????????????? | | T"# #???# #????????????????? | | ""######+##+######## #????????????????? | | ""## + #######??????????? | | ## # ##### ?????????? | | ! ## # #???# ?????????? | | ######## # #???# " " ?????????? | | ???????# # #???# "Y" ??????????? | | ???????# # #???# """ ??????????? | | ???????######## #####+######### ?????????????? | | ??????????????# ## k #???????????????? | | ??????????????# ## #???????????????? | | ??????????????# ## +???????????????? | | ??????????????# ## k #???????????????? | | ??????????????# ## #???????????????? | | ####??????????# ######@########???????????????? | | #??????????# #????# #??????????????????????? | | #??????????# #????#h#??????????????????????? | | #??????????# #????# #??????????????????????? | | #??????????# #????# #??????????????????????? | | #??????????# ?????# T??????????????????????? | | #??????????# #???????# ??????????????????????? | | #??????????# #???????# #??????????????????????? | | #??????????# #???????# #??????????????????????? | | #??????????# #???????? ???????????????????????? | | #??????????# #???????? ???????????????????????? | | ############/#???????? ???????????????????????? | | # #???????? ???????????????????????? | | # #???????? ???????????????????????? | | # #???????? ???????????????????????? | | # #???????? ???????????????????????? | | # #????????????????????????????????? | | # #????????????????????????????????? | | + #????????????????????????????????? | | # #????????????????????????????????? | | # #????????????????????????????????? | | # #????????????????????????????????? | | # #????????????????????????????????? | | # #????????????????????????????????? | | #########+####????????????????????????????????? | +----------------------------------------------------+ Best States ------------- Heat Dissipation 61 Energy Generation 14 Energy Capacity 250 Matter Stores 300 Matter Capacity 300 Sight Range 18 Terrain Scan Density 10 Evasion (%) 55 Recoil Reduction 3 Item Schematics ----------------- None Robot Schematics ------------------ None Fabricated ------------ Nothing Alien Tech Used ----------------- None Achievements -------------- None Challenges ------------ None Game ------ Seed HoverLightningProtomatter Manual? 0 Play Time 00:42:16 Cumulative 27.1 hours Start 2022.04.03 @ 15:39:19 End 2022.04.03 @ 16:24:15 Sessions 1 Manual Loads 0 Difficulty Rogue Special Mode None Game No. 78 Rogue 78 Adventurer 0 Explorer 0 Win Type - Total 0 Types 0/0/0/0/0/0/0/0/0 Lore% 21 Gallery% 26 Achievement% 20 Wizard Run 0 Options --------- ASCII 0 Keyboard 0 Movement Mouse Keybinds 0 Fullscreen 1 Font 18/Terminus Map View 76x50 Tactical HUD 1 Map Filters NONE Filters NONE Steam 1 RUN: 39b25ab5-52cd-406e-bb71-7a75af5b8ee9